[Event "Chpt France Universitaire 2024"]
[Site "Bastia, France"]
[Date "2024.04.07"]
[Round "8.9"]
[White "Defromont, Benjamin"]
[Black "Lahoche, Dorian"]
[Result "1/2-1/2"]
[TimeControl "15min+5s"]
[WhiteElo "2393"]
[BlackElo "2146"]

1. e4 {[%clk 00:15:05]} {[%emt 00:00:02]} e5 {[%clk 00:15:05]} {[%emt
00:00:02]} 2. Nf3 {[%clk 00:15:05]} {[%emt 00:00:02]} Nc6 {[%clk 00:15:05]}
{[%emt 00:00:02]} 3. Bb5 {[%clk 00:15:05]} {[%emt 00:00:02]} a6 {[%clk
00:15:05]} {[%emt 00:00:02]} 4. Ba4 {[%clk 00:15:05]} {[%emt 00:00:01]} Nf6
{[%clk 00:15:05]} {[%emt 00:00:02]} 5. O-O {[%clk 00:15:05]} {[%emt 00:00:02]}
Be7 {[%clk 00:15:05]} {[%emt 00:00:02]} 6. Re1 {[%clk 00:15:05]} {[%emt
00:00:02]} b5 {[%clk 00:15:05]} {[%emt 00:00:02]} 7. Bb3 {[%clk 00:15:05]}
{[%emt 00:00:01]} d6 {[%clk 00:15:05]} {[%emt 00:00:02]} 8. c3 {[%clk
00:15:05]} {[%emt 00:00:01]} O-O {[%clk 00:15:05]} {[%emt 00:00:04]} 9. h3
{[%clk 00:15:05]} {[%emt 00:00:01]} Nb8 {[%clk 00:15:05]} {[%emt 00:00:02]} 10.
d4 {[%clk 00:15:05]} {[%emt 00:00:03]} Nbd7 {[%clk 00:15:05]} {[%emt 00:00:02]}
11. c4 {[%clk 00:15:05]} {[%emt 00:00:01]} c6 {[%clk 00:14:57]} {[%emt
00:00:13]} 12. Nc3 {[%clk 00:14:56]} {[%emt 00:00:15]} Qc7 {[%clk 00:14:27]}
{[%emt 00:00:36]} 13. a3 {[%clk 00:14:33]} {[%emt 00:00:28]} exd4 {[%clk
00:13:39]} {[%emt 00:00:53]} 14. Nxd4 {[%clk 00:14:14]} {[%emt 00:00:24]} Ne5
{[%clk 00:13:34]} {[%emt 00:00:09]} 15. cxb5 {[%clk 00:14:04]} {[%emt
00:00:15]} axb5 {[%clk 00:13:27]} {[%emt 00:00:12]} 16. Bf4 {[%clk 00:13:39]}
{[%emt 00:00:31]} Ng6 {[%clk 00:13:05]} {[%emt 00:00:27]} 17. Bg3 {[%clk
00:13:34]} {[%emt 00:00:10]} Rd8 {[%clk 00:12:14]} {[%emt 00:00:56]} 18. Rc1
{[%clk 00:13:34]} {[%emt 00:00:04]} Qb6 {[%clk 00:11:58]} {[%emt 00:00:21]} 19.
Kh2 {[%clk 00:11:36]} {[%emt 00:02:03]} Ra7 {[%clk 00:10:49]} {[%emt 00:01:14]}
20. f4 {[%clk 00:11:24]} {[%emt 00:00:17]} Ba6 {[%clk 00:09:21]} {[%emt
00:01:34]} 21. Nf5 {[%clk 00:11:08]} {[%emt 00:00:21]} Bf8 {[%clk 00:09:08]}
{[%emt 00:00:17]} 22. Qf3 {[%clk 00:10:58]} {[%emt 00:00:16]} b4 {[%clk
00:07:42]} {[%emt 00:01:31]} 23. axb4 {[%clk 00:06:18]} {[%emt 00:04:45]} Qxb4
{[%clk 00:07:42]} {[%emt 00:00:05]} 24. Na2 {[%clk 00:06:18]} {[%emt 00:00:01]}
Qb7 {[%clk 00:07:19]} {[%emt 00:00:27]} 25. e5 {[%clk 00:06:15]} {[%emt
00:00:09]} dxe5 {[%clk 00:07:12]} {[%emt 00:00:12]} 26. fxe5 {[%clk 00:06:15]}
{[%emt 00:00:02]} Rd3 {[%clk 00:05:13]} {[%emt 00:02:04]} 27. Re3 {[%clk
00:04:22]} {[%emt 00:01:59]} Qxb3 {[%clk 00:04:57]} {[%emt 00:00:21]} 28. Rxd3
{[%clk 00:04:22]} {[%emt 00:00:01]} Qxd3 {[%clk 00:04:54]} {[%emt 00:00:08]} 29.
Qf2 {[%clk 00:03:04]} {[%emt 00:01:23]} Ra8 {[%clk 00:03:40]} {[%emt 00:01:19]}
30. exf6 {[%clk 00:02:56]} {[%emt 00:00:13]} Bc8 {[%clk 00:03:20]} {[%emt
00:00:25]} 31. fxg7 {[%clk 00:02:47]} {[%emt 00:00:14]} Qxf5 {[%clk 00:02:38]}
{[%emt 00:00:47]} 32. gxf8=Q+ {[%clk 00:02:47]} {[%emt 00:00:03]} Kxf8 {[%clk
00:02:37]} {[%emt 00:00:05]} 33. Bd6+ {[%clk 00:02:06]} {[%emt 00:00:46]} Kg8
{[%clk 00:02:31]} {[%emt 00:00:10]} 34. Qxf5 {[%clk 00:01:50]} {[%emt
00:00:22]} Bxf5 {[%clk 00:02:31]} 35. Nb4 {[%clk 00:01:50]} {[%emt 00:00:01]}
Rd8 {[%clk 00:01:58]} {[%emt 00:00:38]} 36. Rxc6 {[%clk 00:01:36]} {[%emt
00:00:20]} Be4 {[%clk 00:01:52]} {[%emt 00:00:11]} 37. Rb6 {[%clk 00:01:36]}
{[%emt 00:00:01]} Rc8 {[%clk 00:01:51]} {[%emt 00:00:05]} 38. Rb8 {[%clk
00:00:37]} {[%emt 00:01:04]} Rxb8 {[%clk 00:01:44]} {[%emt 00:00:12]} 39. Bxb8
{[%clk 00:00:37]} {[%emt 00:00:01]} Kf8 {[%clk 00:01:36]} {[%emt 00:00:13]} 40.
Kg3 {[%clk 00:00:34]} {[%emt 00:00:08]} Ke7 {[%clk 00:01:36]} {[%emt 00:00:04]}
41. Na6 {[%clk 00:00:30]} {[%emt 00:00:09]} Bc6 {[%clk 00:01:24]} {[%emt
00:00:17]} 42. Nc5 {[%clk 00:00:30]} {[%emt 00:00:04]} Nf8 {[%clk 00:01:22]}
{[%emt 00:00:07]} 43. Nd3 {[%clk 00:00:14]} {[%emt 00:00:21]} Nd7 {[%clk
00:01:12]} {[%emt 00:00:15]} 44. Bf4 {[%clk 00:00:14]} {[%emt 00:00:02]} Ke6
{[%clk 00:01:06]} {[%emt 00:00:11]} 45. Kf2 {[%clk 00:00:14]} {[%emt 00:00:04]}
Be4 {[%clk 00:01:04]} {[%emt 00:00:07]} 46. Nc1 {[%clk 00:00:11]} {[%emt
00:00:09]} Kd5 {[%clk 00:01:01]} {[%emt 00:00:07]} 47. g4 {[%clk 00:00:11]}
{[%emt 00:00:06]} Nc5 {[%clk 00:01:01]} {[%emt 00:00:04]} 48. Ke3 {[%clk
00:00:11]} {[%emt 00:00:01]} Bg2 {[%clk 00:00:51]} {[%emt 00:00:15]} 49. h4
{[%clk 00:00:11]} Kc4 {[%clk 00:00:40]} {[%emt 00:00:17]} 50. Be5 {[%clk
00:00:11]} Bf1 {[%clk 00:00:34]} {[%emt 00:00:11]} 51. Bd4 {[%clk 00:00:11]}
{[%emt 00:00:05]} Nb3 {[%clk 00:00:29]} {[%emt 00:00:11]} 52. Nxb3 Kxb3 {[%clk
00:00:29]} 53. Kf4 {[%clk 00:00:11]} {[%emt 00:00:01]} Kc4 {[%clk 00:00:27]}
{[%emt 00:00:07]} 54. Bg7 {[%clk 00:00:07]} {[%emt 00:00:08]} Bd3 {[%clk
00:00:20]} {[%emt 00:00:11]} 55. Ke5 {[%clk 00:00:07]} {[%emt 00:00:02]} Be2
{[%clk 00:00:20]} {[%emt 00:00:02]} 56. g5 {[%clk 00:00:07]} {[%emt 00:00:03]}
Bh5 {[%clk 00:00:20]} {[%emt 00:00:04]} 57. Kf6 {[%clk 00:00:07]} {[%emt
00:00:01]} Kb3 {[%clk 00:00:20]} {[%emt 00:00:02]} 58. Ke7 {[%clk 00:00:07]}
{[%emt 00:00:01]} Bg6 {[%clk 00:00:20]} {[%emt 00:00:01]} 59. Bc3 {[%clk
00:00:07]} {[%emt 00:00:03]} Bh5 {[%clk 00:00:20]} {[%emt 00:00:03]} 60. Kf6
{[%clk 00:00:07]} {[%emt 00:00:01]} Bg6 {[%clk 00:00:18]} {[%emt 00:00:07]} 61.
Kg7 {[%clk 00:00:07]} {[%emt 00:00:01]} Kc4 {[%clk 00:00:18]} {[%emt 00:00:05]}
62. Kh6 {[%clk 00:00:07]} {[%emt 00:00:02]} Bd3 {[%clk 00:00:18]} {[%emt
00:00:04]} 63. Kg7 {[%clk 00:00:07]} {[%emt 00:00:04]} Bg6 {[%clk 00:00:18]}
{[%emt 00:00:02]} 64. Kf6 {[%clk 00:00:07]} {[%emt 00:00:01]} Kb3 {[%clk
00:00:18]} {[%emt 00:00:02]} 65. Be5 {[%clk 00:00:07]} {[%emt 00:00:01]} Bh5
{[%clk 00:00:18]} {[%emt 00:00:04]} 66. Kf5 {[%clk 00:00:07]} Kc4 {[%clk
00:00:18]} {[%emt 00:00:03]} 67. Bd6 {[%clk 00:00:07]} {[%emt 00:00:02]} Kb3
{[%clk 00:00:18]} 68. Be5 {[%clk 00:00:07]} {[%emt 00:00:02]} Kc4 {[%clk
00:00:18]} {[%emt 00:00:02]} 69. Kf4 {[%clk 00:00:07]} {[%emt 00:00:02]} Kb3
{[%clk 00:00:18]} {[%emt 00:00:02]} 70. Bg7 {[%clk 00:00:07]} {[%emt 00:00:04]}
Kc4 {[%clk 00:00:18]} {[%emt 00:00:03]} 71. Bf8 {[%clk 00:00:07]} {[%emt
00:00:03]} Kb3 {[%clk 00:00:18]} {[%emt 00:00:01]} 72. Ba3 {[%clk 00:00:07]}
{[%emt 00:00:05]} Kc4 {[%clk 00:00:09]} {[%emt 00:00:14]} 73. b4 {[%clk
00:00:07]} {[%emt 00:00:04]} Bg6 {[%clk 00:00:09]} {[%emt 00:00:05]} 74. Kg4
{[%clk 00:00:07]} {[%emt 00:00:03]} Kb3 {[%clk 00:00:09]} {[%emt 00:00:02]} 75.
b5 {[%clk 00:00:07]} {[%emt 00:00:01]} Kxa3 {[%clk 00:00:09]} {[%emt 00:00:04]}
76. Kf4 {[%clk 00:00:07]} {[%emt 00:00:05]} Bd3 {[%clk 00:00:09]} {[%emt
00:00:01]} 77. b6 {[%clk 00:00:07]} Ba6 {[%clk 00:00:09]} 78. Kf5 {[%clk
00:00:07]} {[%emt 00:00:01]} Kb4 {[%clk 00:00:09]} 79. Kf6 {[%clk 00:00:07]}
Kc5 {[%clk 00:00:09]} {[%emt 00:00:02]} 80. Kxf7 {[%clk 00:00:07]} {[%emt
00:00:02]} Kxb6 {[%clk 00:00:09]} 81. Kg7 {[%clk 00:00:07]} {[%emt 00:00:02]}
Bd3 {[%clk 00:00:09]} {[%emt 00:00:01]} 82. h5 {[%clk 00:00:07]} {[%emt
00:00:02]} Kc6 {[%clk 00:00:09]} {[%emt 00:00:03]} 83. Kf6 {[%clk 00:00:07]}
{[%emt 00:00:04]} Kd6 {[%clk 00:00:09]} {[%emt 00:00:01]} 84. g6 {[%clk
00:00:07]} {[%emt 00:00:04]} Bxg6 {[%clk 00:00:09]} {[%emt 00:00:02]} 85. hxg6
{[%clk 00:00:07]} {[%emt 00:00:02]} hxg6 {[%clk 00:00:09]} 86. Kxg6 Ke5 {[%emt
00:00:04]} 1/2-1/2

[Event "Chpt France Universitaire 2024"]
[Site "Bastia, France"]
[Date "2024.04.07"]
[Round "8.10"]
[White "Cahen, Alexis"]
[Black "Djidjeli, Sarah"]
[Result "1/2-1/2"]
[TimeControl "15min+5s"]
[WhiteElo "2060"]
[BlackElo "2080"]

1. e4 {[%clk 00:15:05]} {[%emt 00:00:03]} c5 {[%clk 00:15:05]} 2. c4 {[%clk
00:15:05]} {[%emt 00:00:03]} Nc6 {[%clk 00:15:05]} {[%emt 00:00:03]} 3. Nc3
{[%clk 00:15:05]} {[%emt 00:00:03]} e5 {[%clk 00:14:28]} {[%emt 00:00:43]} 4.
g3 {[%clk 00:14:50]} {[%emt 00:00:20]} d6 {[%clk 00:14:28]} {[%emt 00:00:05]} 5.
Bg2 {[%clk 00:14:45]} {[%emt 00:00:09]} g6 {[%clk 00:14:08]} {[%emt 00:00:25]}
6. Nge2 {[%clk 00:14:40]} {[%emt 00:00:10]} Bg7 {[%clk 00:14:08]} {[%emt
00:00:01]} 7. Rb1 {[%clk 00:14:17]} {[%emt 00:00:28]} Nge7 {[%clk 00:14:08]}
{[%emt 00:00:04]} 8. a3 {[%clk 00:14:15]} {[%emt 00:00:07]} a5 {[%clk
00:13:42]} {[%emt 00:00:32]} 9. d3 {[%clk 00:14:09]} {[%emt 00:00:11]} O-O
{[%clk 00:13:40]} {[%emt 00:00:08]} 10. O-O {[%clk 00:14:08]} {[%emt 00:00:04]}
Be6 {[%clk 00:12:27]} {[%emt 00:01:18]} 11. Nd5 {[%clk 00:13:35]} {[%emt
00:00:38]} Nd4 {[%clk 00:11:36]} {[%emt 00:00:57]} 12. Bd2 {[%clk 00:12:46]}
{[%emt 00:00:53]} Nec6 {[%clk 00:11:11]} {[%emt 00:00:30]} 13. Nec3 {[%clk
00:11:39]} {[%emt 00:01:11]} Rb8 {[%clk 00:10:57]} {[%emt 00:00:20]} 14. f4
{[%clk 00:10:57]} {[%emt 00:00:47]} f5 {[%clk 00:10:06]} {[%emt 00:00:56]} 15.
a4 {[%clk 00:09:46]} {[%emt 00:01:15]} Kh8 {[%clk 00:08:19]} {[%emt 00:01:53]}
16. Be3 {[%clk 00:09:32]} {[%emt 00:00:19]} Bd7 {[%clk 00:06:26]} {[%emt
00:01:59]} 17. b3 {[%clk 00:09:27]} {[%emt 00:00:09]} b6 {[%clk 00:06:23]}
{[%emt 00:00:09]} 18. Qd2 {[%clk 00:09:15]} {[%emt 00:00:17]} Be6 {[%clk
00:05:49]} {[%emt 00:00:40]} 19. Kh1 {[%emt 00:01:10]} Qd7 20. Rf2 {[%clk
00:07:01]} {[%emt 00:01:12]} Rf7 {[%clk 00:05:47]} {[%emt 00:00:07]} 21. Rff1
{[%clk 00:07:01]} {[%emt 00:00:03]} Rff8 {[%clk 00:05:47]} {[%emt 00:00:03]} 22.
Rf2 {[%clk 00:07:01]} {[%emt 00:00:01]} Rf7 {[%clk 00:05:41]} {[%emt 00:00:12]}
23. Rff1 {[%clk 00:07:01]} {[%emt 00:00:01]} Rff8 {[%clk 00:05:28]} {[%emt
00:00:18]} 24. Rf2 {[%clk 00:07:01]} {[%emt 00:00:01]} 1/2-1/2

[Event "Chpt France Universitaire 2024"]
[Site "Bastia, France"]
[Date "2024.04.07"]
[Round "8.11"]
[White "Morison, Julien"]
[Black "Aghamir Alrobiai, Nizar"]
[Result "1-0"]
[TimeControl "15min+5s"]
[WhiteElo "1926"]
[BlackElo "2098"]

1. e4 {[%clk 00:15:05]} e6 {[%clk 00:15:05]} {[%emt 00:00:01]} 2. d4 {[%clk
00:15:05]} {[%emt 00:00:01]} d5 {[%clk 00:15:05]} 3. exd5 {[%clk 00:15:05]}
{[%emt 00:00:04]} exd5 {[%clk 00:15:05]} 4. c4 {[%clk 00:15:05]} Bb4+ {[%clk
00:15:02]} {[%emt 00:00:09]} 5. Nc3 {[%clk 00:15:05]} Ne7 {[%clk 00:15:02]}
{[%emt 00:00:02]} 6. Bd3 {[%clk 00:15:05]} {[%emt 00:00:02]} dxc4 {[%clk
00:15:00]} {[%emt 00:00:02]} 7. Bxc4 {[%clk 00:15:05]} {[%emt 00:00:01]} O-O
{[%clk 00:15:02]} {[%emt 00:00:02]} 8. Nge2 {[%clk 00:15:05]} {[%emt 00:00:02]}
Nd7 {[%clk 00:14:42]} {[%emt 00:00:25]} 9. O-O {[%clk 00:15:05]} {[%emt
00:00:04]} Nb6 {[%clk 00:14:42]} {[%emt 00:00:02]} 10. Bd3 {[%clk 00:15:05]}
{[%emt 00:00:01]} Bf5 {[%clk 00:14:42]} {[%emt 00:00:01]} 11. a3 {[%clk
00:14:41]} {[%emt 00:00:30]} Bxd3 {[%clk 00:13:47]} {[%emt 00:00:58]} 12. Qxd3
{[%clk 00:14:28]} {[%emt 00:00:19]} Bd6 {[%clk 00:13:47]} {[%emt 00:00:02]} 13.
Ng3 {[%clk 00:14:26]} {[%emt 00:00:07]} Bxg3 {[%clk 00:13:07]} {[%emt
00:00:45]} 14. fxg3 {[%clk 00:14:25]} {[%emt 00:00:06]} Qd7 {[%clk 00:12:50]}
{[%emt 00:00:22]} 15. Ne4 {[%clk 00:14:19]} {[%emt 00:00:11]} Rad8 {[%clk
00:12:50]} {[%emt 00:00:02]} 16. Be3 {[%clk 00:14:13]} {[%emt 00:00:11]} Nbd5
{[%clk 00:11:25]} {[%emt 00:01:30]} 17. Bg5 {[%clk 00:12:56]} {[%emt 00:01:22]}
f6 {[%clk 00:10:26]} {[%emt 00:01:04]} 18. Bd2 {[%clk 00:12:47]} {[%emt
00:00:13]} b6 {[%clk 00:10:15]} {[%emt 00:00:17]} 19. Rae1 {[%clk 00:12:16]}
{[%emt 00:00:36]} Kh8 {[%clk 00:09:35]} {[%emt 00:00:45]} 20. Bc3 {[%clk
00:12:03]} {[%emt 00:00:18]} Rfe8 {[%clk 00:09:10]} {[%emt 00:00:30]} 21. g4
{[%clk 00:11:07]} {[%emt 00:01:01]} Qxg4 {[%clk 00:08:46]} {[%emt 00:00:29]} 22.
Rf3 {[%clk 00:10:47]} {[%emt 00:00:24]} Nf4 {[%clk 00:08:35]} {[%emt 00:00:16]}
23. Qd2 {[%clk 00:10:42]} {[%emt 00:00:11]} Ned5 {[%clk 00:08:35]} {[%emt
00:00:05]} 24. Ng3 {[%clk 00:09:16]} {[%emt 00:01:30]} h5 {[%clk 00:04:25]}
{[%emt 00:04:15]} 25. Ref1 {[%clk 00:08:50]} {[%emt 00:00:31]} Ng6 {[%clk
00:02:03]} {[%emt 00:02:28]} 26. Nf5 {[%clk 00:07:33]} {[%emt 00:01:23]} h4
{[%clk 00:01:03]} {[%emt 00:01:04]} 27. Rh3 {[%clk 00:06:39]} {[%emt 00:00:59]}
Re2 {[%clk 00:00:55]} {[%emt 00:00:13]} 28. Nxh4 {[%clk 00:06:05]} {[%emt
00:00:39]} Rxd2 {[%clk 00:00:28]} {[%emt 00:00:32]} 29. Nxg6+ {[%clk 00:06:05]}
{[%emt 00:00:04]} Kg8 {[%clk 00:00:28]} {[%emt 00:00:05]} 30. Rh8+ {[%clk
00:06:05]} {[%emt 00:00:01]} Kf7 {[%clk 00:00:28]} 31. Ne5+ {[%clk 00:06:05]}
{[%emt 00:00:01]} Ke7 {[%clk 00:00:21]} {[%emt 00:00:11]} 32. Nxg4 {[%clk
00:06:05]} {[%emt 00:00:02]} Nxc3 {[%clk 00:00:19]} {[%emt 00:00:07]} 33. Rxd8
{[%clk 00:05:43]} {[%emt 00:00:27]} Ne2+ {[%clk 00:00:19]} {[%emt 00:00:01]} 34.
Kf2 {[%clk 00:05:22]} {[%emt 00:00:26]} Kxd8 {[%clk 00:00:19]} {[%emt
00:00:01]} 35. Ke3 {[%clk 00:05:22]} {[%emt 00:00:02]} Rxb2 {[%clk 00:00:19]}
{[%emt 00:00:01]} 36. Rf2 {[%clk 00:05:22]} {[%emt 00:00:05]} Rb3+ {[%clk
00:00:13]} {[%emt 00:00:11]} 37. Kxe2 {[%clk 00:05:22]} {[%emt 00:00:02]} Rxa3
{[%clk 00:00:13]} {[%emt 00:00:01]} 38. Rf1 {[%clk 00:05:00]} {[%emt 00:00:26]}
a5 {[%clk 00:00:13]} {[%emt 00:00:02]} 39. Ne3 {[%clk 00:05:00]} {[%emt
00:00:04]} Ra2+ {[%clk 00:00:13]} {[%emt 00:00:04]} 40. Kd3 {[%clk 00:05:00]}
{[%emt 00:00:03]} b5 {[%clk 00:00:13]} {[%emt 00:00:02]} 41. Rb1 {[%clk
00:04:55]} {[%emt 00:00:10]} b4 {[%clk 00:00:13]} {[%emt 00:00:01]} 42. Kc4
{[%clk 00:04:51]} {[%emt 00:00:08]} Re2 {[%clk 00:00:13]} {[%emt 00:00:01]} 43.
Kd3 {[%clk 00:04:30]} {[%emt 00:00:26]} Ra2 {[%clk 00:00:13]} {[%emt 00:00:01]}
44. h4 {[%clk 00:04:13]} {[%emt 00:00:21]} Ke8 {[%clk 00:00:13]} {[%emt
00:00:03]} 45. g3 {[%clk 00:04:04]} {[%emt 00:00:14]} Kf7 {[%clk 00:00:13]}
{[%emt 00:00:02]} 46. Rc1 {[%clk 00:04:04]} {[%emt 00:00:02]} Ra3+ {[%clk
00:00:13]} {[%emt 00:00:06]} 47. Ke4 {[%clk 00:03:53]} {[%emt 00:00:12]} a4
{[%clk 00:00:13]} {[%emt 00:00:08]} 48. Rxc7+ {[%clk 00:03:53]} {[%emt
00:00:02]} Kg8 {[%clk 00:00:13]} 49. Nf5 {[%clk 00:03:45]} {[%emt 00:00:13]} b3
{[%clk 00:00:13]} {[%emt 00:00:01]} 50. Rxg7+ {[%clk 00:03:45]} {[%emt
00:00:01]} Kf8 {[%clk 00:00:13]} 51. Rb7 {[%clk 00:03:45]} {[%emt 00:00:02]}
Ra2 {[%clk 00:00:13]} {[%emt 00:00:05]} 52. h5 {[%clk 00:03:32]} {[%emt
00:00:18]} Rh2 {[%clk 00:00:13]} {[%emt 00:00:05]} 53. h6 {[%clk 00:03:32]}
{[%emt 00:00:03]} b2 {[%clk 00:00:13]} {[%emt 00:00:01]} 54. Kd5 {[%clk
00:03:25]} {[%emt 00:00:11]} Rxh6 {[%clk 00:00:07]} {[%emt 00:00:10]} 55. Nxh6
{[%clk 00:03:25]} {[%emt 00:00:04]} a3 {[%clk 00:00:07]} 56. Ke6 {[%clk
00:02:11]} {[%emt 00:01:20]} a2 {[%clk 00:00:07]} {[%emt 00:00:01]} 57. Rf7+
{[%clk 00:02:08]} {[%emt 00:00:07]} Ke8 {[%clk 00:00:07]} {[%emt 00:00:01]} 58.
Nf5 {[%clk 00:02:08]} {[%emt 00:00:05]} Kd8 {[%clk 00:00:07]} {[%emt 00:00:05]}
59. Nd6 {[%clk 00:02:08]} 1-0

[Event "Chpt France Universitaire 2024"]
[Site "Bastia, France"]
[Date "2024.04.07"]
[Round "8.12"]
[White "Sumarriva Paulin, Laura"]
[Black "Bosc, Seraphina"]
[Result "0-1"]
[TimeControl "15min+5s"]
[WhiteElo "2046"]
[BlackElo "2216"]

1. e4 {[%emt 00:09:49]} e6 {[%emt 00:00:01]} 2. d4 {[%emt 00:00:02]} d5 3. exd5
{[%emt 00:00:02]} exd5 4. c4 {[%emt 00:00:02]} Nf6 {[%emt 00:00:11]} 5. Nc3
{[%emt 00:00:04]} Bd6 {[%emt 00:01:06]} 6. Bd3 {[%emt 00:00:49]} dxc4 {[%emt
00:00:06]} 7. Bxc4 {[%emt 00:00:02]} O-O {[%emt 00:00:06]} 8. Nf3 {[%emt
00:01:21]} Bg4 {[%emt 00:01:11]} 9. O-O {[%emt 00:00:04]} Nbd7 {[%emt
00:00:05]} 10. Bg5 {[%emt 00:00:19]} c6 {[%emt 00:00:36]} 11. Bb3 {[%emt
00:00:32]} Qc7 {[%emt 00:00:19]} 12. h3 {[%emt 00:00:10]} Bh5 {[%emt 00:00:10]}
13. Rc1 {[%emt 00:00:22]} Bf4 {[%emt 00:01:16]} 14. Bxf4 {[%emt 00:02:44]} Qxf4
15. Ne2 {[%emt 00:00:41]} Qd6 {[%emt 00:00:09]} 16. Qd3 {[%emt 00:03:19]} Nb6
{[%emt 00:01:39]} 17. Rfd1 {[%emt 00:02:17]} Rad8 {[%emt 00:00:09]} 18. Ng3
{[%emt 00:00:14]} Bg6 {[%emt 00:00:19]} 19. Qd2 {[%emt 00:00:08]} Nh5 {[%emt
00:02:13]} 20. Ne2 {[%emt 00:01:12]} Rfe8 {[%emt 00:01:13]} 21. Nh4 {[%emt
00:00:26]} Qe7 {[%emt 00:00:44]} 22. Nxg6 {[%emt 00:00:29]} hxg6 {[%emt
00:00:34]} 23. Nc3 {[%emt 00:00:31]} Nf6 {[%emt 00:00:15]} 24. Qg5 {[%emt
00:00:13]} Nfd5 {[%emt 00:00:22]} 25. Qg4 {[%emt 00:00:08]} Qd7 {[%emt
00:00:26]} 26. Qf3 {[%emt 00:00:07]} Qf5 {[%emt 00:00:16]} 27. Qg3 {[%emt
00:00:15]} Qf4 {[%emt 00:00:39]} 28. Qd3 {[%emt 00:00:03]} Re7 {[%emt
00:01:30]} 29. a3 {[%emt 00:00:15]} Red7 {[%emt 00:00:18]} 30. Ba2 {[%emt
00:00:07]} g5 {[%emt 00:00:24]} 31. Ne2 {[%emt 00:00:02]} Qf6 {[%emt 00:00:04]}
32. Ng3 {[%emt 00:00:03]} Nf4 {[%emt 00:00:13]} 33. Qf3 {[%emt 00:00:10]} Nxh3+
{[%emt 00:00:29]} 34. Kh2 {[%emt 00:00:07]} Qxf3 {[%emt 00:00:07]} 35. gxf3
{[%emt 00:00:01]} Nf4 {[%emt 00:00:13]} 36. Ne4 {[%emt 00:00:02]} Rxd4 {[%emt
00:00:10]} 37. Rxd4 {[%emt 00:00:01]} Rxd4 {[%emt 00:00:01]} 38. Nxg5 {[%emt
00:00:04]} Nbd5 {[%emt 00:00:04]} 39. Re1 {[%emt 00:00:02]} g6 {[%emt
00:00:11]} 40. Re8+ {[%emt 00:00:04]} Kg7 41. Rd8 {[%emt 00:00:01]} Rd2 {[%emt
00:00:04]} 42. Rd7 {[%emt 00:00:04]} Rxf2+ {[%emt 00:00:02]} 43. Kg3 {[%emt
00:00:02]} Rxb2 {[%emt 00:00:11]} 44. Rxf7+ {[%emt 00:00:03]} Kg8 {[%emt
00:00:02]} 45. Bxd5 {[%emt 00:00:02]} Nxd5 {[%emt 00:00:04]} 46. Rd7 {[%emt
00:00:05]} Kf8 {[%emt 00:00:06]} 47. Ne4 {[%emt 00:00:02]} Ke8 {[%emt
00:00:03]} 48. Rg7 {[%emt 00:00:01]} a5 {[%emt 00:00:06]} 49. Rxg6 {[%emt
00:00:02]} Kf7 {[%emt 00:00:02]} 50. Rd6 {[%emt 00:00:02]} Ke7 {[%emt
00:00:03]} 51. Rh6 {[%emt 00:00:02]} a4 {[%emt 00:00:04]} 52. Nc5 {[%emt
00:00:03]} b5 {[%emt 00:00:05]} 53. Kg4 {[%emt 00:00:04]} Nf6+ {[%emt
00:00:05]} 54. Kf5 {[%emt 00:00:02]} Rc2 {[%emt 00:00:05]} 55. Nd3 {[%emt
00:00:05]} Ne8 {[%emt 00:00:04]} 56. Ne5 {[%emt 00:00:01]} Nd6+ {[%emt
00:00:04]} 57. Kf4 {[%emt 00:00:03]} b4 {[%emt 00:00:04]} 58. Rh7+ {[%emt
00:00:05]} Ke8 {[%emt 00:00:03]} 59. Kg5 {[%emt 00:00:02]} bxa3 {[%emt
00:00:05]} 60. Kf6 Kd8 {[%emt 00:00:01]} 61. Rd7+ {[%emt 00:00:02]} Kc8 62.
Rxd6 {[%emt 00:00:03]} a2 {[%emt 00:00:02]} 63. Ke7 {[%emt 00:00:03]} 0-1